bitfinex/quotes_BTCUSD_20251027
["timestamp","ask_amount","ask_price","bid_price","bid_amount"]
[1761605295724,0.01112732,114250.0,114240.0,1.40876166]
[1761605299536,0.01112732,114250.0,114240.0,1.02384166]
[1761605299736,0.01112732,114250.0,114240.0,1.04444903]
[1761605299943,0.01112732,114250.0,114240.0,1.40868166]
[1761605303913,0.01112732,114250.0,114240.0,1.40854219]
[1761605304916,0.00112732,114250.0,114240.0,1.40654219]
[1761605305154,0.00112732,114250.0,114240.0,1.40754219]
[1761605305358,0.00712732,114250.0,114240.0,1.40754219]
[1761605305557,0.00112732,114250.0,114240.0,1.40654219]
[1761605305769,0.00012732,114250.0,114240.0,1.40654219]
[1761605305931,0.00612732,114250.0,114240.0,1.40754219]
[1761605310946,0.00612732,114250.0,114240.0,1.77163535]
[1761605311150,0.00612732,114250.0,114240.0,1.81070219]
[1761605311573,0.00612732,114250.0,114240.0,1.82070218]
[1761605312236,0.00612732,114250.0,114240.0,1.81070219]
[1761605312426,0.00612732,114250.0,114240.0,1.82070218]
[1761605312631,0.00612732,114250.0,114240.0,1.78163534]
[1761605312833,0.00612732,114250.0,114240.0,1.79163533]
[1761605313416,0.00612732,114250.0,114240.0,1.82781761]
[1761605313626,0.00012732,114250.0,114240.0,1.97411761]
[1761605314001,0.00512732,114250.0,114240.0,1.97511761]
[1761605314617,0.00512732,114250.0,114240.0,1.96511762]
[1761605314829,0.00512732,114250.0,114240.0,1.97511761]
[1761605316060,0.00512732,114250.0,114240.0,1.24693129]
[1761605316299,0.00512732,114250.0,114240.0,1.97511761]
[1761605316515,0.00512732,114250.0,114240.0,1.61102445]
[1761605317601,0.00512732,114250.0,114240.0,1.60102446]
[1761605317810,0.00512732,114250.0,114240.0,1.61102445]
[1761605323444,0.00512732,114250.0,114240.0,1.60094446]
[1761605323660,0.00512732,114250.0,114240.0,1.61094445]
[1761605325671,0.00512732,114250.0,114240.0,1.60094446]
[1761605326080,0.00512732,114250.0,114240.0,1.61094445]
[1761605326286,0.00512732,114250.0,114240.0,1.60094446]
[1761605326468,0.00512732,114250.0,114240.0,1.61094445]
[1761605327121,0.00512732,114250.0,114240.0,1.60094446]
[1761605327427,0.00512732,114250.0,114240.0,1.61094445]
[1761605328602,0.00512732,114250.0,114240.0,1.63721312]
[1761605330359,0.00512732,114250.0,114240.0,1.26311997]
[1761605330557,0.00512732,114250.0,114240.0,1.63721312]
[1761605330791,0.00512732,114250.0,114240.0,1.62721313]
[1761605331211,0.00512732,114250.0,114240.0,1.63721312]
[1761605332169,0.00512732,114250.0,114240.0,1.62721313]
[1761605332585,0.00512732,114250.0,114240.0,1.63721312]
[1761605333807,0.00512732,114250.0,114240.0,1.25245312]
[1761605334040,0.00512732,114250.0,114240.0,1.63717312]
[1761605334269,0.00512732,114250.0,114240.0,1.25245312]
[1761605334506,0.00512732,114250.0,114240.0,1.63717312]
[1761605335166,0.00512732,114250.0,114240.0,1.25245312]
[1761605335376,0.00512732,114250.0,114240.0,1.63717312]
[1761605335597,0.00512732,114250.0,114240.0,2.00126628]
[1761605337135,0.00512732,114250.0,114240.0,1.85396628]
[1761605337562,0.00512732,114250.0,114240.0,1.79796628]
[1761605337785,0.00512732,114250.0,114240.0,1.85396628]
[1761605339642,0.00512732,114250.0,114240.0,1.79796628]
[1761605339872,0.00512732,114250.0,114240.0,1.85396628]
[1761605340490,0.00512732,114250.0,114240.0,1.62296628]
[1761605340700,0.00512732,114250.0,114240.0,1.85396628]
[1761605342182,0.00512732,114250.0,114240.0,1.84396629]
[1761605342572,0.00512732,114250.0,114240.0,1.85396628]
[1761605342993,0.00512732,114250.0,114240.0,1.99126629]
[1761605344467,0.00512732,114250.0,114240.0,1.96499762]
[1761605348842,0.00512732,114250.0,114240.0,1.81769762]
[1761605349240,0.00512732,114250.0,114240.0,1.45360446]
[1761605350532,0.00512732,114250.0,114240.0,1.81769762]
[1761605351151,0.02626867,114270.0,114260.0,0.51503938]
[1761605351314,0.55795224,114300.0,114290.0,0.17499343]
[1761605351521,0.65609391,114300.0,114290.0,0.39677343]
[1761605351731,0.65609391,114300.0,114290.0,0.43624343]
[1761605351952,0.68236058,114300.0,114290.0,0.43624343]
[1761605352805,0.70236058,114300.0,114290.0,0.43824343]
[1761605354168,0.70336058,114300.0,114290.0,0.43824343]
[1761605357505,0.33926742,114300.0,114290.0,0.43824343]
[1761605357705,0.70336058,114300.0,114290.0,0.43824343]
[1761605359122,0.33926742,114300.0,114290.0,0.43824343]
[1761605359343,0.70336058,114300.0,114290.0,0.43824343]
[1761605363912,1.06714704,114300.0,114290.0,0.43824343]
[1761605365677,1.07828704,114300.0,114290.0,0.23933]
[1761605366340,1.07828704,114300.0,114290.0,0.41432343]
[1761605367191,0.33926677,114300.0,114290.0,0.43824343]
[1761605367411,1.06714639,114300.0,114290.0,0.43824343]
[1761605368498,0.89216827,114300.0,114290.0,0.43824343]
[1761605368718,0.52822846,114300.0,114290.0,0.43824343]
[1761605368969,0.70320658,114300.0,114290.0,0.43824343]
[1761605369602,1.06714639,114300.0,114290.0,0.43824343]
[1761605371984,0.14540834,114300.0,114290.0,0.50177865]
[1761605372200,0.14540834,114300.0,114290.0,0.86571846]
[1761605372408,0.14540834,114300.0,114290.0,0.50177865]
[1761605373143,0.13721362,114300.0,114290.0,0.50177865]
[1761605373353,0.50015343,114300.0,114290.0,0.50177865]
[1761605373580,0.11721362,114300.0,114290.0,0.49877865]
[1761605373784,0.48115343,114300.0,114290.0,0.49977865]
[1761605373991,0.49015343,114300.0,114290.0,0.50077865]
[1761605376305,0.66513155,114300.0,114290.0,0.50077865]
[1761605376519,0.49015343,114300.0,114290.0,0.49977865]
[1761605376734,0.85409324,114300.0,114290.0,0.49977865]
[1761605377759,0.49015343,114300.0,114290.0,0.49977865]
[1761605378191,0.66513155,114300.0,114290.0,0.49977865]
[1761605378626,1.04021136,114300.0,114290.0,0.41332343]
[1761605379483,1.04021136,114300.0,114290.0,0.43705343]
[1761605380096,1.04838996,114300.0,114290.0,0.41332343]
[1761605380832,1.04838996,114300.0,114290.0,0.43705343]
[1761605383980,1.03724996,114300.0,114290.0,0.43705343]
[1761605384840,1.04838996,114300.0,114290.0,0.41332343]
[1761605385322,0.32051034,114300.0,114290.0,0.41332343]
[1761605385570,1.04838996,114300.0,114290.0,0.41332343]
[1761605387665,1.04838777,114300.0,114290.0,0.43594343]
[1761605389920,1.04838777,114300.0,114290.0,0.26095]
[1761605390114,1.04838777,114300.0,114290.0,0.23833]
[1761605391154,1.04838777,114300.0,114290.0,0.26095]
[1761605391354,1.03724777,114300.0,114290.0,0.26095]
[1761605391571,0.67330796,114300.0,114290.0,0.26095]
[1761605391758,1.04838777,114300.0,114290.0,0.21068]
[1761605392002,1.05952777,114300.0,114290.0,0.21068]
[1761605392558,1.04838777,114300.0,114290.0,0.21068]
[1761605393187,1.04838777,114300.0,114290.0,0.22732]
[1761605397478,1.04838777,114300.0,114290.0,0.2387]
[1761605399631,1.04838777,114300.0,114290.0,0.22603]
[1761605400695,0.32050815,114300.0,114290.0,0.22603]
[1761605400901,1.04838777,114300.0,114290.0,0.23809]
[1761605402146,1.04838777,114300.0,114290.0,0.26234]
[1761605402147,0.32050815,114300.0,114290.0,0.26234]
[1761605402352,1.04838777,114300.0,114290.0,0.26234]
[1761605403314,1.04838777,114300.0,114290.0,0.23809]
[1761605403734,0.32050815,114300.0,114290.0,0.26234]
[1761605403941,1.03724777,114300.0,114290.0,0.26234]
[1761605404580,1.0109811,114300.0,114290.0,0.26234]
[1761605404984,0.64704129,114300.0,114290.0,0.26234]
[1761605405810,0.28310148,114300.0,114290.0,0.26334]
[1761605406019,0.64704129,114300.0,114290.0,0.26334]
[1761605406391,0.64704129,114300.0,114290.0,0.43733343]
[1761605408473,0.47206317,114300.0,114290.0,0.43733343]
[1761605408682,0.28310148,114300.0,114290.0,0.43733343]
[1761605408897,0.28310148,114300.0,114290.0,0.50452238]
[1761605409314,0.28310148,114300.0,114290.0,0.50352238]
[1761605409723,0.28310148,114300.0,114290.0,0.50452238]
[1761605410179,0.28310148,114300.0,114290.0,0.50352238]
[1761605411125,0.28310148,114300.0,114290.0,0.50452238]
[1761605411545,0.28310148,114300.0,114290.0,0.50352238]
[1761605411767,0.64704129,114300.0,114290.0,0.50352238]
[1761605412848,0.28310148,114300.0,114290.0,0.50352238]
[1761605413070,0.64704129,114300.0,114290.0,0.50352238]
[1761605413489,0.28310148,114300.0,114290.0,0.50352238]
[1761605413703,0.64704129,114300.0,114290.0,0.50352238]
[1761605414748,0.64704129,114300.0,114290.0,0.50452238]
[1761605414895,0.64704129,114300.0,114290.0,0.50352238]
[1761605416315,0.10812336,114300.0,114290.0,0.50352238]
[1761605416523,0.10812336,114300.0,114290.0,0.50452238]
[1761605417180,0.09994695,114300.0,114290.0,0.50452238]
[1761605419049,0.09994695,114300.0,114290.0,0.86846219]
[1761605419265,0.09994695,114300.0,114290.0,0.50452238]
[1761605421522,0.27492507,114300.0,114290.0,0.50452238]
[1761605421732,0.63886488,114300.0,114290.0,0.50452238]
[1761605421879,0.27492507,114300.0,114290.0,0.50452238]
[1761605422308,0.64705602,114300.0,114290.0,0.50452238]
[1761605422746,0.28311621,114300.0,114290.0,0.50452238]
[1761605423143,0.64705602,114300.0,114290.0,0.50452238]
[1761605423374,0.28311621,114300.0,114290.0,0.50352238]
[1761605423558,0.64705602,114300.0,114290.0,0.50352238]
[1761605423730,0.28311621,114300.0,114290.0,0.50352238]
[1761605424338,0.28311621,114300.0,114290.0,0.50452238]
[1761605424543,0.10813809,114300.0,114290.0,0.50452238]
[1761605424794,0.10813809,114300.0,114290.0,0.50352238]
[1761605426114,0.10813809,114300.0,114290.0,0.50452238]
[1761605426317,0.09994695,114300.0,114290.0,0.50452238]
[1761605436684,0.27492507,114300.0,114290.0,0.50452238]
[1761605436934,0.09994695,114300.0,114290.0,0.50352238]
[1761605437363,0.09994695,114300.0,114290.0,0.50452238]
[1761605438698,0.27492507,114300.0,114290.0,0.50452238]
[1761605439537,0.09994695,114300.0,114290.0,0.50452238]
[1761605439744,0.27492507,114300.0,114290.0,0.50452238]
[1761605439958,0.09994695,114300.0,114290.0,0.50452238]
[1761605444945,0.27492507,114300.0,114290.0,0.50452238]
[1761605445557,0.09994695,114300.0,114290.0,0.50452238]
[1761605451252,0.09994695,114300.0,114290.0,0.50352238]
[1761605451491,0.09994695,114300.0,114290.0,0.49852238]
[1761605451893,0.09994695,114300.0,114290.0,0.49952238]
[1761605453881,0.27492507,114300.0,114290.0,0.49952238]
[1761605454511,0.09994695,114300.0,114290.0,0.49952238]
[1761605455366,0.27492507,114300.0,114290.0,0.49952238]
[1761605455806,0.09994695,114300.0,114290.0,0.49952238]
[1761605456296,0.10813582,114300.0,114290.0,0.49952238]
[1761605456545,0.09994695,114300.0,114290.0,0.49952238]
[1761605461103,0.10394695,114300.0,114290.0,0.49952238]
[1761605462424,0.27892507,114300.0,114290.0,0.49952238]
[1761605462715,0.27892507,114300.0,114290.0,0.43333343]
[1761605463400,0.27892507,114300.0,114290.0,0.43233343]
[1761605463605,0.27892507,114300.0,114290.0,0.43333343]
[1761605464252,0.10394695,114300.0,114290.0,0.43333343]
[1761605464866,0.10394695,114300.0,114290.0,0.48529344]
[1761605465761,0.10394695,114300.0,114290.0,0.48429344]
[1761605465968,0.10394695,114300.0,114290.0,0.48529344]
[1761605466404,0.27892507,114300.0,114290.0,0.48529344]
[1761605467836,0.27892507,114300.0,114290.0,0.31030001]
[1761605468048,0.6509938,114300.0,114290.0,0.43233343]
[1761605469331,0.6621338,114300.0,114290.0,0.23309]
[1761605471535,0.6621338,114300.0,114290.0,0.40808343]
[1761605471982,0.6621338,114300.0,114290.0,0.43219343]
[1761605473631,0.6621338,114300.0,114290.0,0.23309]
[1761605473874,0.28711313,114300.0,114290.0,0.43219343]
[1761605474084,0.28711313,114300.0,114290.0,0.51272344]
[1761605474503,0.28711313,114300.0,114290.0,0.43219343]
[1761605476004,0.29825313,114300.0,114290.0,0.23309]
[1761605476234,0.29825313,114300.0,114290.0,0.40808343]
[1761605476466,0.6621338,114300.0,114290.0,0.23309]
[1761605479562,0.6621338,114300.0,114290.0,0.40808343]
[1761605481157,0.17499343,114290.0,114280.0,0.18710669]
[1761605481304,0.45369968,114290.0,114280.0,0.41176669]
[1761605481514,0.10095901,114290.0,114280.0,0.41176669]
[1761605481718,0.08981901,114290.0,114280.0,0.43587669]
[1761605482391,0.28668661,114290.0,114280.0,0.43587669]
[1761605482508,0.26481244,114290.0,114280.0,0.43587669]
[1761605483764,0.27381244,114290.0,114280.0,0.43687669]
[1761605484976,0.26481244,114290.0,114280.0,0.43587669]
[1761605485201,0.09081901,114290.0,114280.0,0.43587669]
[1761605485417,0.10281901,114290.0,114280.0,0.43687669]
[1761605485812,0.46677371,114290.0,114280.0,0.43687669]
[1761605486025,0.64176714,114290.0,114280.0,0.43687669]
[1761605486939,0.47791371,114290.0,114280.0,0.41276669]
[1761605487098,0.65290714,114290.0,114280.0,0.41276669]
[1761605489739,0.65290714,114290.0,114280.0,0.2106]
[1761605490156,0.65290714,114290.0,114280.0,0.22661]
[1761605490814,0.65290714,114290.0,114280.0,0.40161875]
[1761605491254,0.64176714,114290.0,114280.0,0.43647875]
[1761605493515,0.27781244,114290.0,114280.0,0.43647875]
[1761605494131,0.27772984,114290.0,114280.0,0.43647875]
[1761605496041,0.10273641,114290.0,114280.0,0.43647875]
[1761605496240,0.27772984,114290.0,114280.0,0.43647875]
[1761605499240,0.64168454,114290.0,114280.0,0.43647875]
[1761605499465,0.10273641,114290.0,114280.0,0.52729776]
[1761605499866,0.27772984,114290.0,114280.0,0.52729776]
[1761605500277,0.10273641,114290.0,114280.0,0.52729776]
[1761605501923,0.10273641,114290.0,114280.0,0.88625246]
[1761605502969,0.46669111,114290.0,114280.0,0.52229776]
[1761605503182,0.10273641,114290.0,114280.0,0.52129776]
[1761605503390,0.46669111,114290.0,114280.0,0.52229776]
[1761605503604,0.10273641,114290.0,114280.0,0.52229776]
[1761605504238,0.10273641,114290.0,114280.0,0.52129776]
[1761605504450,0.10273641,114290.0,114280.0,0.88625246]
[1761605508018,0.10673641,114290.0,114280.0,0.88625246]
[1761605509391,0.017,114290.0,114280.0,1.27647317]
[1761605509613,0.017,114290.0,114280.0,0.91251847]
[1761605519038,0.017,114290.0,114280.0,1.27647317]
[1761605520320,0.017,114290.0,114280.0,0.54856377]
[1761605520525,0.017,114290.0,114280.0,1.27647317]
[1761605522609,0.017,114290.0,114280.0,0.54756377]
[1761605522821,0.017,114290.0,114280.0,0.72752377]
[1761605524579,0.47077371,114290.0,114280.0,0.07813601]
[1761605524784,0.65690714,114290.0,114280.0,0.41288875]
[1761605525184,0.65690714,114290.0,114280.0,0.43717875]
[1761605526702,0.65690714,114290.0,114280.0,0.26217]
[1761605527115,0.65690714,114290.0,114280.0,0.43717875]
[1761605527541,0.64576714,114290.0,114280.0,0.43717875]
[1761605528925,0.47077371,114290.0,114280.0,0.43717875]
[1761605529124,0.10681901,114290.0,114280.0,0.88702973]
[1761605529349,0.10681901,114290.0,114280.0,0.80213345]
[1761605529566,0.10681901,114290.0,114280.0,0.46444501]
[1761605529779,0.10681901,114290.0,114280.0,0.82839971]
[1761605535226,0.10681901,114290.0,114280.0,0.46444501]
[1761605535452,0.10681901,114290.0,114280.0,0.82839971]
[1761605535665,0.10681901,114290.0,114280.0,0.91821872]
[1761605536861,0.10681901,114290.0,114280.0,1.98612812]
[1761605536862,0.017,114290.0,114280.0,1.98612812]
[1761605537157,0.00012794,114300.0,114290.0,0.17599343]
[1761605537339,0.0042,114330.0,114320.0,0.51494751]
[1761605537487,0.0042,114330.0,114320.0,0.98310916]
[1761605537488,0.00468683,114330.0,114320.0,0.98310916]
[1761605537693,0.00468683,114330.0,114320.0,0.99980386]
[1761605537899,0.00468683,114330.0,114320.0,1.41077817]
[1761605538111,0.00468683,114330.0,114320.0,0.66310347]
[1761605538309,0.00468683,114330.0,114320.0,1.02705817]
[1761605538803,0.01368683,114330.0,114320.0,1.41281817]
[1761605539912,0.01368683,114330.0,114320.0,1.04886347]
[1761605540136,0.01368683,114330.0,114320.0,1.41281817]
[1761605540702,0.01368683,114330.0,114320.0,1.04886347]
[1761605540908,0.01368683,114330.0,114320.0,1.41281817]
[1761605541274,0.01368683,114330.0,114320.0,1.04886347]
[1761605544384,0.01368683,114330.0,114320.0,1.04786347]
[1761605545033,0.10350584,114330.0,114320.0,0.32310347]
[1761605545253,0.48932706,114330.0,114320.0,0.63658182]
[1761605545492,0.46746054,114330.0,114320.0,0.63658182]
[1761605545709,0.46746054,114330.0,114320.0,0.41185431]
[1761605545710,0.69128275,114330.0,114320.0,0.41185431]
[1761605545936,0.69128275,114330.0,114320.0,0.56054751]
[1761605546155,0.69313227,114330.0,114320.0,0.57568751]
[1761605546381,0.69313227,114330.0,114320.0,0.40074]
[1761605546797,0.69313227,114330.0,114320.0,0.57568751]
[1761605547687,0.71754227,114330.0,114320.0,0.3856]
[1761605547887,0.71733784,114330.0,114320.0,0.3856]
[1761605548306,0.12976536,114330.0,114320.0,0.63426749]
[1761605548528,0.30469757,114330.0,114320.0,0.63426749]
[1761605548943,0.30469757,114330.0,114320.0,0.61110751]
[1761605549159,0.12976536,114330.0,114320.0,0.61110751]
[1761605549376,0.30469757,114330.0,114320.0,0.61110751]
[1761605550026,0.12976536,114330.0,114320.0,0.61110751]
[1761605552479,0.12976536,114330.0,114320.0,0.61210751]
[1761605552676,0.12976536,114330.0,114320.0,0.69457111]
[1761605553343,0.12976536,114330.0,114320.0,0.69357111]
[1761605554610,0.12976536,114330.0,114320.0,0.61110751]
[1761605555220,0.68447784,114330.0,114320.0,0.61110751]
[1761605555448,0.69253784,114330.0,114320.0,0.58736751]
[1761605555680,0.69253784,114330.0,114320.0,0.41242]
[1761605556714,0.69253784,114330.0,114320.0,0.58736751]
[1761605558527,0.69253784,114330.0,114320.0,0.57222751]
[1761605559621,0.69253784,114330.0,114320.0,0.58797751]
[1761605560356,0.69253784,114330.0,114320.0,0.41303]
[1761605560798,0.69253784,114330.0,114320.0,0.58797751]
[1761605562108,0.71714784,114330.0,114320.0,0.57222751]
[1761605562507,0.71714784,114330.0,114320.0,0.58797751]
[1761605562508,0.70069676,114330.0,114320.0,0.58797751]
[1761605566660,0.70069676,114330.0,114320.0,0.41303]
[1761605567066,0.70069676,114330.0,114320.0,0.58797751]
[1761605568407,0.33694649,114330.0,114320.0,0.58797751]
[1761605568610,0.70069676,114330.0,114320.0,0.58797751]
[1761605568788,0.70069676,114330.0,114320.0,0.41303]
[1761605569024,0.70069676,114330.0,114320.0,0.58797751]
[1761605569227,0.67443724,114330.0,114320.0,0.58797751]
[1761605571026,0.69904724,114330.0,114320.0,0.58797751]
[1761605571205,0.67443724,114330.0,114320.0,0.58797751]
[1761605573200,0.67443724,114330.0,114320.0,0.41303]
[1761605573398,0.67443724,114330.0,114320.0,0.58797751]
[1761605574860,0.67443724,114330.0,114320.0,0.41303]
[1761605575428,0.67443724,114330.0,114320.0,0.58797751]
[1761605575578,0.67443724,114330.0,114320.0,0.41301751]
[1761605575792,0.69904724,114330.0,114320.0,0.23807]
[1761605576231,0.67443724,114330.0,114320.0,0.41301751]
[1761605581666,0.31068697,114330.0,114320.0,0.41301751]
[1761605581873,0.28659697,114330.0,114320.0,0.43733751]
[1761605582305,0.31048697,114330.0,114320.0,0.41301751]
[1761605582749,0.31048697,114330.0,114320.0,0.43733751]
[1761605583143,0.67423724,114330.0,114320.0,0.43733751]
[1761605584669,0.69726724,114330.0,114320.0,0.38558751]
[1761605584894,0.67423724,114330.0,114320.0,0.40152751]
[1761605588085,0.69918724,114330.0,114320.0,0.21064]
[1761605588290,0.67423724,114330.0,114320.0,0.22686]
[1761605588464,0.67423724,114330.0,114320.0,0.21064]
[1761605588669,0.69918724,114330.0,114320.0,0.21064]
[1761605589113,1.06293751,114330.0,114320.0,0.21064]
[1761605589316,1.08180441,114330.0,114320.0,0.21064]
[1761605590163,1.07280441,114330.0,114320.0,0.20964]
[1761605590373,1.07380441,114330.0,114320.0,0.20964]
[1761605590592,0.71705414,114330.0,114320.0,0.20964]
[1761605591441,0.17494751,114320.0,114310.0,0.18711279]
[1761605591667,0.17497812,114300.0,114290.0,0.01532]
[1761605591879,0.6527674,114300.0,114290.0,0.21352]
[1761605592103,0.6777174,114300.0,114290.0,0.05996]
[1761605592355,1.04964155,114300.0,114290.0,0.21352]
[1761605592565,1.04963409,114300.0,114290.0,0.21352]
[1761605592790,1.38963409,114300.0,114290.0,0.21352]
[1761605593089,1.40844979,114300.0,114290.0,0.21352]
[1761605593326,1.40944979,114300.0,114290.0,0.22352]
[1761605593541,1.40943746,114300.0,114290.0,0.21352]
[1761605593770,1.40943746,114300.0,114290.0,0.21552]
[1761605593982,1.40843746,114300.0,114290.0,0.06196]
[1761605594198,1.40843746,114300.0,114290.0,0.21356]
[1761605594397,1.42843746,114300.0,114290.0,0.21456]
[1761605594854,1.41143746,114300.0,114290.0,0.21356]
[1761605595465,1.40843746,114300.0,114290.0,0.21356]
[1761605595843,1.41343746,114300.0,114290.0,0.21356]
[1761605596194,1.44343746,114300.0,114290.0,0.21656]
[1761605598407,1.42463409,114300.0,114290.0,0.21656]
[1761605601685,1.44335998,114300.0,114290.0,0.21656]
[1761605605453,1.80711025,114300.0,114290.0,0.1606]
[1761605606079,1.83338636,114300.0,114290.0,0.1606]
[1761605606284,1.8569669,114300.0,114290.0,0.1606]
[1761605606695,1.8569669,114300.0,114290.0,0.007]
[1761605607682,2.95112051,114300.0,114290.0,0.007]
[1761605609146,0.17499343,114290.0,114280.0,0.1536]
[1761605609344,1.39694107,114290.0,114280.0,0.1536]
[1761605609547,1.43143696,114290.0,114280.0,0.1536]
[1761605609779,1.44007105,114290.0,114280.0,0.1536]
[1761605610187,1.46634992,114290.0,114280.0,0.1536]
[1761605610387,1.47734992,114290.0,114280.0,0.15472794]
[1761605611343,1.48034992,114290.0,114280.0,0.15472794]
[1761605611769,1.48034992,114290.0,114280.0,0.00112794]
[1761605613494,1.50393046,114290.0,114280.0,0.00112794]
[1761605616183,1.08983698,114290.0,114280.0,0.00112794]
[1761605616397,1.11341752,114290.0,114280.0,0.00112794]
[1761605618459,1.12970695,114290.0,114280.0,0.00112794]
[1761605619520,1.24347689,114280.0,114270.0,0.21364]
[1761605619725,1.39188821,114280.0,114270.0,0.21364]
[1761605619938,1.40765821,114280.0,114270.0,0.21364]
[1761605620565,1.43123875,114280.0,114270.0,0.21364]
[1761605620773,1.06800468,114280.0,114270.0,0.21364]
[1761605620926,1.43223875,114280.0,114270.0,0.21364]
[1761605621127,1.40865821,114280.0,114270.0,0.21364]
[1761605621332,1.43223875,114280.0,114270.0,0.21364]
[1761605621945,1.4322874,114280.0,114270.0,0.21364]
[1761605622284,1.4332874,114280.0,114270.0,0.21964]
[1761605622486,1.44962744,114280.0,114270.0,0.21964]
[1761605623127,1.44963119,114280.0,114270.0,0.21964]
[1761605630210,1.4810142,114280.0,114270.0,0.21964]
[1761605632255,0.75254606,114280.0,114270.0,2.21964]
[1761605632468,1.4810142,114280.0,114270.0,2.21964]
[1761605634903,1.48110994,114280.0,114270.0,2.21964]
[1761605638268,1.44972693,114280.0,114270.0,2.21964]
[1761605638885,1.48110994,114280.0,114270.0,2.21964]
[1761605640260,1.44972693,114280.0,114270.0,2.21964]
[1761605642685,0.38125879,114280.0,114270.0,2.21964]
[1761605642883,0.11888309,114280.0,114270.0,2.44791406]
[1761605643011,0.27504643,114280.0,114270.0,2.44791406]
[1761605643213,0.27504643,114280.0,114270.0,2.27289]
[1761605643214,0.6392805,114280.0,114270.0,2.27289]
[1761605643417,0.27504643,114280.0,114270.0,2.44791406]
[1761605643636,0.6392805,114280.0,114270.0,2.44791406]
[1761605644278,0.27504643,114280.0,114270.0,2.44791406]
[1761605645833,0.10003768,114280.0,114270.0,2.53773307]
[1761605646509,0.09186766,114280.0,114270.0,2.53773307]
[1761605647421,0.09186766,114280.0,114270.0,2.53873307]
[1761605648231,0.09086766,114280.0,114270.0,2.90296714]
[1761605648531,0.09186766,114280.0,114270.0,2.90296714]
[1761605648683,0.09086766,114280.0,114270.0,2.89696714]
[1761605649264,0.09286766,114280.0,114270.0,2.90896714]
[1761605650542,0.09286766,114280.0,114270.0,2.93523517]
[1761605656405,0.00304865,114280.0,114270.0,2.93523517]
[1761605656590,0.00304865,114280.0,114270.0,3.27523517]
[1761605657568,0.00204865,114280.0,114270.0,3.27523517]
[1761605657798,4.865e-05,114280.0,114270.0,3.26323517]
[1761605658014,4.865e-05,114280.0,114270.0,3.27023517]
[1761605665225,4.865e-05,114280.0,114270.0,2.6963611]
[1761605665226,0.36428272,114280.0,114270.0,2.6963611]
[1761605665421,0.36428272,114280.0,114270.0,2.99014209]
[1761605665422,0.08986766,114280.0,114270.0,2.99014209]
[1761605665623,0.08986766,114280.0,114270.0,2.99114209]
[1761605665829,0.08986766,114280.0,114270.0,2.98414209]
[1761605666922,0.08986766,114280.0,114270.0,3.0739611]
[1761605667224,0.09186766,114280.0,114270.0,3.0729611]
[1761605667388,0.09086766,114280.0,114270.0,3.0739611]
[1761605667593,0.09086766,114280.0,114270.0,3.0729611]
[1761605667792,0.09786766,114280.0,114270.0,3.0729611]
[1761605668911,0.09786766,114280.0,114270.0,3.0739611]
[1761605672512,0.27287641,114280.0,114270.0,2.41214209]
[1761605672713,0.6368298,114280.0,114270.0,2.23227406]
[1761605672901,0.6368298,114280.0,114270.0,2.44187406]
[1761605673376,0.6368298,114280.0,114270.0,2.26685]
[1761605673582,0.6847898,114280.0,114270.0,2.2136]
[1761605673963,0.69295813,114280.0,114270.0,2.2136]
[1761605674128,1.03295813,114280.0,114270.0,2.2136]
[1761605674540,1.05177125,114280.0,114270.0,2.2136]
[1761605674743,1.05077125,114280.0,114270.0,2.2136]
[1761605674959,1.04377125,114280.0,114270.0,2.2136]
[1761605675366,1.03795813,114280.0,114270.0,2.2136]
[1761605676335,1.40291152,114280.0,114270.0,2.004]
[1761605676602,1.42171257,114280.0,114270.0,2.2136]
[1761605676960,1.05775918,114280.0,114270.0,2.2136]
[1761605677417,1.03895813,114280.0,114270.0,2.2136]
[1761605685394,0.67500474,114280.0,114270.0,2.2136]
[1761605685596,1.03895813,114280.0,114270.0,2.2136]
[1761605686427,1.0307898,114280.0,114270.0,2.2136]
[1761605688652,1.39474319,114280.0,114270.0,2.2136]
[1761605688857,1.40288621,114280.0,114270.0,2.004]
[1761605689053,1.42164728,114280.0,114270.0,2.004]
[1761605689870,1.42064728,114280.0,114270.0,2.004]
[1761605690292,1.41264728,114280.0,114270.0,2.004]
[1761605690495,1.45664728,114280.0,114270.0,2.008]
[1761605694525,1.5453468,114280.0,114270.0,2.008]
[1761605696494,1.5453468,114280.0,114220.0,0.00020918]
[1761605696495,0.17508535,114230.0,114220.0,0.00020918]
[1761605696702,0.62133419,114230.0,114220.0,0.15384918]
[1761605697071,1.02474758,114230.0,114220.0,0.15384918]
[1761605697675,1.39074959,114230.0,114220.0,0.16784918]
[1761605697831,1.0267962,114230.0,114220.0,0.16784918]
[1761605698013,1.0317962,114230.0,114220.0,0.16784918]
[1761605698870,1.0317962,114230.0,114220.0,0.15384918]
[1761605699106,1.0297962,114230.0,114220.0,0.15384918]
[1761605699219,1.40774959,114230.0,114220.0,0.00420918]
[1761605699469,1.42647554,114230.0,114220.0,0.00420918]
[1761605700290,1.45143363,114230.0,114220.0,0.00420918]
[1761605700716,1.43270768,114230.0,114220.0,0.00420918]
[1761605701087,1.45144035,114230.0,114220.0,0.00420918]
[1761605702144,1.08748696,114230.0,114220.0,0.00420918]
[1761605702777,1.45144035,114230.0,114220.0,0.00420918]
[1761605705280,1.45144035,114230.0,114210.0,0.10454918]
[1761605705281,0.19763068,114220.0,114210.0,0.10454918]
[1761605705477,1.0317863,114220.0,114210.0,0.10454918]
[1761605705728,1.0665511,114220.0,114210.0,0.10454918]
[1761605706079,0.70259771,114220.0,114210.0,0.10454918]
[1761605706351,1.0665511,114220.0,114210.0,0.10454918]
[1761605706932,1.0745511,114220.0,114210.0,0.10454918]
[1761605707444,1.0775511,114220.0,114210.0,0.10454918]
[1761605709592,1.0775511,114220.0,114190.0,1e-08]
[1761605709593,0.17513134,114200.0,114190.0,1e-08]
[1761605709764,1.34927696,114200.0,114190.0,0.20996001]
[1761605709981,1.04392837,114200.0,114190.0,0.20996001]
[1761605711277,1.05192837,114200.0,114190.0,0.20996001]
[1761605711453,1.05492837,114200.0,114190.0,0.20996001]
[1761605714432,1.09111065,114200.0,114190.0,0.20996001]
[1761605714973,1.09108958,114200.0,114190.0,0.20996001]
[1761605715657,1.0549073,114200.0,114190.0,0.20996001]
[1761605716117,1.09108958,114200.0,114190.0,0.21058774]
[1761605719115,1.0549073,114200.0,114190.0,0.21058774]
[1761605719326,1.11443174,114200.0,114190.0,0.21058774]
[1761605722268,1.11441737,114200.0,114190.0,0.21058774]
[1761605723136,1.16205826,114200.0,114190.0,0.21058774]
[1761605724091,1.52601165,114200.0,114190.0,0.21058774]
[1761605724294,1.54975414,114200.0,114190.0,0.21058774]
[1761605724498,1.18580075,114200.0,114190.0,0.21058774]
[1761605724703,1.15441774,114200.0,114190.0,0.21058774]
[1761605724940,1.13559293,114200.0,114190.0,0.15454773]
[1761605725142,1.14059293,114200.0,114190.0,0.15454773]
[1761605725345,1.15641774,114200.0,114190.0,0.15454773]